fUSD/lending_fUSD_20240201
["ID","MTS","AMOUNT","RATE_DAILY","PERIOD"]
[313152121,1706821840697,-500.0,0.00022999,2]
[313152122,1706821840706,-349.19551706,0.00022999,2]
[313152123,1706821840716,-557.48950252,0.00022999,2]
[313152124,1706821840726,-500.0,0.00022999,2]
[313152125,1706821840736,-500.0,0.00022999,2]
[313152126,1706821840745,-500.0,0.00022999,2]
[313152127,1706821840755,-500.0,0.00022999,2]
[313152128,1706821840765,-500.0,0.00022999,2]
[313152129,1706821840775,-500.0,0.00022999,2]
[313152130,1706821840786,-500.0,0.00022999,2]
[313152131,1706821840796,-500.0,0.00022999,2]
[313152132,1706821840806,-453.68237506,0.00022999,2]
[313152133,1706821840817,-500.0,0.00022999,2]
[313152134,1706821840828,-500.0,0.00022999,2]
[313152135,1706821840839,-500.0,0.00022999,2]
[313152136,1706821840849,-500.0,0.00022999,2]
[313152137,1706821840860,-500.0,0.00022999,2]
[313152138,1706821840871,-500.0,0.00022999,2]
[313152139,1706821840886,-500.0,0.00022999,2]
[313152140,1706821840898,-500.0,0.00022999,2]
[313152141,1706821840909,-500.0,0.00022999,2]
[313152142,1706821840919,-500.0,0.00022999,2]
[313152143,1706821840932,-500.0,0.00022999,2]
[313152144,1706821840943,-500.0,0.00022999,2]
[313152145,1706821840954,-500.0,0.00022999,2]
[313152146,1706821840964,-500.0,0.00022999,2]
[313152147,1706821840974,-500.0,0.00022999,2]
[313152148,1706821840983,-500.0,0.00022999,2]
[313152149,1706821840992,-500.0,0.00022999,2]
[313152150,1706821841001,-500.0,0.00022999,2]
[313152151,1706821841010,-500.0,0.00022999,2]
[313152152,1706821841020,-500.0,0.00022999,2]
[313152153,1706821841030,-500.0,0.00022999,2]
[313152154,1706821841039,-178.79082596,0.00022999,2]
[313152155,1706821841048,-500.0,0.00022999,2]
[313152156,1706821841058,-500.0,0.00022999,2]
[313152157,1706821841067,-500.0,0.00022999,2]
[313152158,1706821841078,-500.0,0.00022999,2]
[313152159,1706821841087,-500.0,0.00022999,2]
[313152160,1706821841096,-500.0,0.00022999,2]
[313152161,1706821841106,-500.0,0.00022999,2]
[313152162,1706821841115,-500.0,0.00022999,2]
[313152163,1706821841125,-500.0,0.00022999,2]
[313152164,1706821841138,-500.0,0.00022999,2]
[313152165,1706821841147,-500.0,0.00022999,2]
[313152166,1706821841157,-500.0,0.00022999,2]
[313152167,1706821841166,-500.0,0.00022999,2]
[313152168,1706821841175,-500.0,0.00022999,2]
[313152169,1706821841184,-500.0,0.00022999,2]
[313152170,1706821841194,-500.0,0.00022999,2]
[313152171,1706821841203,-500.0,0.00022999,2]
[313152172,1706821841212,-500.0,0.00022999,2]
[313152173,1706821841221,-500.0,0.00022999,2]
[313152174,1706821841230,-486.56639247,0.00022999,2]
[313152175,1706821841240,-500.0,0.00022999,2]
[313152176,1706821841249,-500.0,0.00022999,2]
[313152177,1706821841258,-500.0,0.00022999,2]
[313152178,1706821841267,-500.0,0.00022999,2]
[313152179,1706821841278,-500.0,0.00022999,2]
[313152180,1706821841288,-500.0,0.00022999,2]
[313152181,1706821841299,-500.0,0.00022999,2]
[313152182,1706821841310,-500.0,0.00022999,2]
[313152183,1706821841321,-500.0,0.00022999,2]
[313152184,1706821841331,-500.0,0.00022999,2]
[313152185,1706821841342,-500.0,0.00022999,2]
[313152186,1706821841351,-500.0,0.00022999,2]
[313152187,1706821841362,-500.0,0.00022999,2]
[313152188,1706821841371,-500.0,0.00022999,2]
[313152189,1706821841384,-500.0,0.00022999,2]
[313152190,1706821841393,-200.0,0.00022999,2]
[313152191,1706821841403,-500.0,0.00022999,2]
[313152192,1706821841411,-500.0,0.00022999,2]
[313152193,1706821841420,-500.0,0.00022999,2]
[313152194,1706821841429,-384.88326248,0.00022999,2]
[313152195,1706821841438,-150.0,0.00022999,2]
[313152196,1706821841447,-300.0,0.00022999,2]
[313152197,1706821841456,-300.0,0.00022999,2]
[313152198,1706821841467,-300.0,0.00022999,2]
[313152199,1706821841476,-300.0,0.00022999,2]
[313152200,1706821841486,-300.0,0.00022999,2]
[313152201,1706821841496,-167.92454049,0.00022999,2]
[313152202,1706821841506,-13590.2298234,0.00022999,2]
[313152203,1706821841515,-278668.0306666,0.00022999,2]
[313152204,1706821841525,-350.0,0.00022999,2]
[313152205,1706821841535,-30816.9067496,0.00022999,2]
[313152206,1706821841545,-30574.4872141,0.00022999,2]
[313152207,1706821841557,-500.0,0.00022999,2]
[313152208,1706821841567,-500.0,0.00022999,2]
[313152209,1706821841578,-419.72761246,0.00022999,2]
[313152210,1706821841588,-378.0,0.00022999,2]
[313152211,1706821841599,-1975.86608568,0.00023,3]
[313152212,1706821841610,-2785576.95190108,0.00023,2]
[313152213,1706821841621,-797224.97938127,0.00023,2]
[313152214,1706821841633,-2599.88218869,0.00023,2]
[313152215,1706821841644,-12252342.0417104,0.00023,2]
[313152216,1706821841660,-417.75203429,0.00023,2]
[313152217,1706821841673,-19000.97379951,0.00023,2]
[313152218,1706821841695,-197.64559856,0.000229,6]
[313152219,1706821841705,-81.3094015,0.00023,2]
[313152220,1706821842129,-384.9054171,0.00023,2]
[313152221,1706821842157,-720.10049987,0.00023,2]
[313152222,1706821842169,-508.620414,0.00023,2]
[313152223,1706821842182,-351931.50780528,0.00023,2]
[313152224,1706821842194,-45016.34391751,0.00023,2]
[313152225,1706821842207,-134176.7312581,0.00023,2]
[313152226,1706821842219,-51425.7928145,0.00023,2]
[313152227,1706821842231,-67026.56079422,0.00023,2]
[313152228,1706821842244,-333793.9116405,0.00023,2]
[313152229,1706821842255,-834.87280297,0.00023,2]
[313152230,1706821842276,-150.0,0.0002292,2]
[313152231,1706821842285,-798.19036636,0.00023,2]
[313152232,1706821842296,-591.5,0.00023,2]
[313152233,1706821842307,-129641.09134721,0.00023,2]
[313152234,1706821842318,-1214.37358567,0.00023,2]
[313152235,1706821842334,-2331.12457311,0.00023,2]
[313152236,1706821842347,-1144.6153312,0.00023,2]
[313152237,1706821842359,-1330.54168592,0.00023,2]
[313152238,1706821842371,-7402.67806028,0.00023,2]
[313152239,1706821842389,-19332.09207819,0.00023,2]
[313152240,1706821842402,-645.5925653,0.00023,2]
[313152241,1706821842551,-150.0,0.00022766,2]
[313152242,1706821842564,-150.0,0.00022774,2]
[313152243,1706821842577,-150.0,0.00022783,2]
[313152244,1706821842588,-150.0,0.00022817,2]
[313152245,1706821842597,-150.0,0.00022822,2]
[313152246,1706821842607,-150.0,0.00022827,2]
[313152247,1706821842618,-150.0,0.00022862,2]
[313152248,1706821842628,-153.6009895,0.000229,2]
[313152249,1706821842640,-150.0,0.00022958,2]
[313152250,1706821842651,-150.0,0.00022992,2]
[313152251,1706821842661,-105561.53772186,0.00023,2]
[313152252,1706821842674,-539.30699596,0.00023,2]
[313152253,1706821842687,-4359.87819354,0.00023,2]
[313152254,1706821842699,-2337.42953611,0.00023,2]
[313152255,1706821842710,-2616.25089041,0.00023,2]
[313152256,1706821842722,-1173.18926266,0.00023,2]
[313152257,1706821842737,-5820.7248,0.00023,2]
[313152258,1706821842761,-508.58444147,0.00023,2]
[313152259,1706821842773,-634.72936171,0.00023,2]
[313152260,1706821842785,-983.57981081,0.00023,2]
[313152261,1706821842797,-500.3449297,0.00023,2]
[313152262,1706821842814,-820.30127484,0.00023,2]
[313152263,1706821842826,-29359.4,0.00023,2]
[313152264,1706821842838,-2560.00000001,0.00023,2]
[313152278,1706821843989,-712.29205035,0.00023,2]
[313152286,1706821844051,-22260.26349022,0.00023,2]
[313152288,1706821844062,-2000.34077734,0.00023,2]
[313152290,1706821844075,-2759.63104175,0.00023,2]
[313152292,1706821844087,-4307.40000001,0.00023,2]
[313152296,1706821844112,-390.60683015,0.00023,2]
[313152298,1706821844124,-1741.48499752,0.00023,2]
[313152301,1706821844136,-941.15136164,0.00023,2]
[313152303,1706821844148,-5022.10850025,0.00023,2]
[313152307,1706821844175,-536.28001313,0.00023,2]
[313152309,1706821844186,-319.68907538,0.00023,2]
[313152311,1706821844197,-8000.0,0.00023,2]
[313152314,1706821844209,-1340.0057622,0.00023,2]
[313152316,1706821844220,-11230.11848998,0.00023,2]
[313152318,1706821844232,-443.052,0.00023,2]
[313152320,1706821844244,-302.23,0.00023,2]
[313152323,1706821844254,-300.1,0.00023,2]
[313152325,1706821844265,-301.132,0.00023,2]
[313152327,1706821844276,-274.264,0.00023,2]
[313152329,1706821844287,-309.865,0.00023,2]
[313152332,1706821844300,-514.5714306,0.00023,2]
[313152336,1706821844311,-5608.36949611,0.00023,2]
[313152339,1706821844322,-3950.0,0.00023,2]
[313152342,1706821844333,-763.60893783,0.00023,2]
[313152346,1706821844345,-6175.33852606,0.00023,2]
[313152350,1706821844356,-973.0500002,0.00023,2]
[313152353,1706821844368,-240098.63424232,0.00023,2]
[313152379,1706821845596,-838.2339049,0.00022995,2]
[313152380,1706821845607,-608.58737114,0.00022995,2]
[313152381,1706821845662,-3245.2040798,0.00022995,2]
[313152382,1706821845721,-571.1670071,0.00022995,2]
[313152383,1706821845734,-1903.83794446,0.00022995,2]
[313152384,1706821845743,-2286.26205555,0.00023,2]
[313152385,1706821845781,-59922.19769563,0.00023,2]
[313152391,1706821886610,2359.30020477,0.00022073,2]
[313152392,1706822052875,1738.45,0.00021625,2]
[313152394,1706822064529,164.33,0.00022257,2]
[313152395,1706822160421,840.0,0.00022171,2]
[313152398,1706822435320,20000.0,0.00021,2]
[313152399,1706822445593,454.13,0.00020231,2]
[313152400,1706822445909,454.13,0.00022495,2]
[313152401,1706822457304,10000.0,0.00022,2]
[313152402,1706822508888,1448.7,0.00021625,2]
[313152403,1706822609502,328.0,0.00022055,2]
[313152404,1706822737418,1327.4895873,0.00022352,2]
[313152405,1706822805484,164.9,0.00022006,2]
[313152406,1706822870475,430.94,0.00020154,2]
[313152407,1706822870640,430.94,0.00022418,2]
[313152408,1706822885339,205.0,0.0002174,2]
[313152409,1706822949134,1207.25,0.00022055,2]
[313152410,1706822978068,1292.32226827,0.00022271,2]
[313152411,1706823009285,219.15,0.00022076,2]
[313152440,1706823033849,-710.02,0.00022576,2]
[313152441,1706823033859,-736.35,0.00022584,2]
[313152442,1706823033868,-459.36294879,0.00022596,2]
[313152443,1706823033956,-185.96785121,0.00022596,2]
[313152444,1706823033965,-523.46936529,0.00022647,2]
[313152445,1706823034013,-768.85290298,0.00022647,2]
[313152446,1706823034023,-211.75589159,0.00022687,2]
[313152447,1706823034036,-500.23410841,0.00022687,2]
[313152448,1706823034047,-723.97,0.00022768,2]
[313152449,1706823034056,-744.15846682,0.00022768,2]
[313152450,1706823034066,-300.0,0.00022793,2]
[313152451,1706823034076,-150.0,0.00022793,2]
[313152452,1706823034086,-1655.27359126,0.00022794,2]
[313152453,1706823034097,-215.63478595,0.00022794,2]
[313152454,1706823034106,-451.58416001,0.00022794,2]
[313152455,1706823034118,-270.14583999,0.00022794,2]
[313152456,1706823034127,-721.36,0.00022794,2]
[313152458,1706823034136,-200.0,0.00022816,2]
[313152460,1706823034146,-362.02991243,0.00022816,2]
[313152462,1706823034157,-437.97008757,0.00022816,2]
[313152464,1706823034166,-33.10564896,0.00022816,2]
[313152467,1706823034182,-166.89435104,0.00022816,2]
[313152469,1706823034191,-500.0,0.00022885,2]
[313152470,1706823034200,-500.0,0.00022885,2]
[313152471,1706823034209,-500.0,0.00022885,2]
[313152472,1706823034218,-207.32835528,0.00022885,2]
[313152473,1706823034229,-292.67164472,0.00022885,2]
[313152474,1706823034239,-537.0319,0.00022885,2]
[313152475,1706823034248,-1481.99645528,0.00022885,2]
[313152478,1706823037834,-229.80923539,0.00022885,2]
[313152479,1706823037844,-390.26366974,0.00022894,2]
[313152480,1706823037855,-17718.67699337,0.00022894,2]
[313152481,1706823037865,-663.17595373,0.00022895,2]
[313152482,1706823037874,-663.17595373,0.00022895,2]
[313152483,1706823037886,-81138.9242,0.00022899,2]
[313152484,1706823037895,-2104.8513,0.00022899,2]
[313152485,1706823037904,-159.01550017,0.00022899,2]
[313152486,1706823037914,-153.55670103,0.000229,2]
[313152487,1706823037928,-5000.0,0.000229,2]
[313152488,1706823037937,-466.12398139,0.000229,2]
[313152489,1706823037946,-618.53531262,0.000229,2]
[313152490,1706823037956,-153.52422636,0.000229,2]
[313152491,1706823037965,-1324.04935662,0.000229,2]
[313152492,1706823037975,-261.16058012,0.000229,2]
[313152493,1706823037984,-216.92747266,0.00022989,2]
[313152494,1706823037995,-502.24649867,0.00022998,2]
[313152495,1706823038005,-172.01115156,0.00022998,2]
[313152496,1706823038014,-1138.97894006,0.00022998,2]
[313152497,1706823038024,-711.49718173,0.00022998,2]
[313152498,1706823038034,-2706.11040838,0.00022998,2]
[313152499,1706823038043,-475.03910094,0.00022998,2]
[313152500,1706823038053,-155.45202334,0.00022998,2]
[313152501,1706823038062,-163.46760489,0.00022998,2]
[313152502,1706823038072,-470.40011406,0.00022998,2]
[313152503,1706823038082,-2632.13681974,0.00022998,2]
[313152504,1706823038091,-164.99634728,0.00022998,2]
[313152505,1706823038101,-157.45566465,0.00022998,2]
[313152506,1706823038110,-150.01,0.00022999,2]
[313152507,1706823038120,-3306.75797983,0.00022999,2]
[313152508,1706823038130,-324954.10270465,0.00022999,2]
[313152509,1706823038139,-381.96444628,0.00022999,2]
[313152510,1706823038149,-465.34421076,0.00022999,2]
[313152511,1706823038159,-554.75865512,0.00022999,2]
[313152512,1706823038168,-617.24685075,0.00022999,2]
[313152513,1706823038178,-500.0,0.00022999,2]
[313152514,1706823038187,-500.0,0.00022999,2]
[313152515,1706823038197,-500.0,0.00022999,2]
[313152516,1706823038206,-208.98493625,0.00022999,2]
[313152517,1706823038216,-500.0,0.00022999,2]
[313152518,1706823038225,-500.0,0.00022999,2]
[313152519,1706823038234,-296.10471252,0.00022999,2]
[313152520,1706823038244,-500.0,0.00022999,2]
[313152521,1706823038253,-500.0,0.00022999,2]
[313152522,1706823038262,-500.0,0.00022999,2]
[313152523,1706823038272,-500.0,0.00022999,2]
[313152524,1706823038281,-500.0,0.00022999,2]
[313152525,1706823038291,-500.0,0.00022999,2]
[313152526,1706823038300,-500.0,0.00022999,2]
[313152527,1706823038309,-500.0,0.00022999,2]
[313152528,1706823038318,-500.0,0.00022999,2]
[313152529,1706823038327,-500.0,0.00022999,2]
[313152530,1706823038337,-354.93026721,0.00022999,2]
[313152531,1706823038346,-171.15877737,0.00022999,2]
[313152532,1706823038355,-350.0,0.00022999,2]
[313152533,1706823038365,-201273.9813333,0.00022999,2]
[313152534,1706823038376,-460.62448512,0.00022999,2]
[313152535,1706823038387,-96131.8958235,0.00022999,2]
[313152536,1706823038396,-32651.367663,0.00022999,2]
[313152537,1706823038405,-8440.6919607,0.00022999,2]
[313152538,1706823038414,-389158.88058041,0.00023,3]
[313152539,1706823038424,-1291634.22929225,0.00023,2]
[313152540,1706823038433,-1106247.2894049,0.00023,2]
[313152541,1706823038465,-71811.31996171,0.00023,2]
[313152542,1706823038476,-78987.34083381,0.00023,2]
[313152543,1706823038488,-88746.64954122,0.00023,2]
[313152544,1706823038500,-4315.5,0.00023,2]
[313152545,1706823038528,-358.901001,0.00023,2]
[313152546,1706823038539,-283.191,0.00023,2]
[313152547,1706823038568,-12792.64609141,0.00023,2]
[313152549,1706823041106,-2307.13447873,0.00022999,2]
[313152550,1706823041117,-999.6235011,0.00022999,2]
[313152551,1706823041127,-3019.46777852,0.00023,2]
[313152552,1706823041140,-825.28,0.00023,2]
[313152553,1706823041152,-756.131,0.00023,2]
[313152554,1706823041163,-315.6,0.00023,2]
[313152555,1706823041174,-721.72278096,0.00023,2]
[313152556,1706823041186,-661.36298688,0.00023,2]
[313152557,1706823041238,-882.65787814,0.00023,2]
[313152558,1706823041251,-496.09708411,0.00023,2]
[313152559,1706823041263,-2995.51485666,0.00023,2]
[313152560,1706823041280,-500.0,0.00023,2]
[313152611,1706823043452,-4145.47092328,0.00023,2]
[313152612,1706823043464,-83480.85674094,0.00023,2]
[313152613,1706823043509,-803.05557728,0.00023,2]
[313152614,1706823043520,-446.4612524,0.00023,2]
[313152615,1706823043531,-1221.27007185,0.00023,2]
[313152616,1706823043569,-271.86183911,0.00023,2]
[313152617,1706823043581,-274.99301369,0.00023,2]
[313152618,1706823043633,-2374312.81955194,0.00023,2]
[313152619,1706823043642,-2000.0,0.00023,2]
[313152620,1706823043652,-200.0,0.00023,2]
[313152621,1706823043661,-2000.0,0.00023,2]
[313152622,1706823043670,-200.0,0.00023,2]
[313152623,1706823043679,-2000.0,0.00023,2]
[313152624,1706823043687,-200.0,0.00023,2]
[313152625,1706823043696,-2599.88218869,0.00023,2]
[313152626,1706823043706,-500.0,0.00023,2]
[313152627,1706823043715,-2000.0,0.00023,2]
[313152628,1706823043725,-200.0,0.00023,2]
[313152629,1706823043734,-150.0,0.00023063,2]
[313152630,1706823043743,-150.0,0.00023063,2]
[313152631,1706823043752,-150.0,0.00023063,2]
[313152632,1706823043761,-150.0,0.00023063,2]
[313152633,1706823043770,-1331.72455972,0.0002307,2]
[313152634,1706823043780,-1292.32226827,0.00023077,2]
[313152635,1706823043790,-500.0,0.00023211,2]
[313152636,1706823043800,-2000.0,0.0002323,2]
[313152638,1706823043810,-200.0,0.0002323,2]
[313152639,1706823043819,-2000.0,0.0002323,2]
[313152640,1706823043828,-200.0,0.0002323,2]
[313152641,1706823043837,-2000.0,0.0002323,2]
[313152642,1706823043846,-200.0,0.0002323,2]
[313152643,1706823043855,-2000.0,0.0002323,2]
[313152644,1706823043864,-200.0,0.0002323,2]
[313152646,1706823043873,-2000.0,0.00023462,2]
[313152647,1706823043883,-200.0,0.00023462,2]
[313152648,1706823043892,-2000.0,0.00023462,2]
[313152649,1706823043901,-200.0,0.00023462,2]
[313152650,1706823043910,-2000.0,0.00023462,2]
[313152651,1706823043920,-200.0,0.00023462,2]
[313152652,1706823043931,-164.9,0.00023473,2]
[313152653,1706823043941,-150.0,0.0002351,2]
[313152654,1706823043950,-1292.32226827,0.00023538,2]
[313152655,1706823043959,-500.0,0.00023606,2]
[313152656,1706823043969,-2000.0,0.00023697,2]
[313152657,1706823043980,-200.0,0.00023697,2]
[313152658,1706823043990,-2000.0,0.00023697,2]
[313152659,1706823043999,-200.0,0.00023697,2]
[313152660,1706823044009,-2000.0,0.00023697,2]
[313152661,1706823044018,-200.0,0.00023697,2]
[313152662,1706823044028,-1207.25,0.00023699,2]
[313152663,1706823044038,-153.55670088,0.00023743,2]
[313152664,1706823044048,-2000.0,0.00023934,2]
[313152665,1706823044057,-200.0,0.00023934,2]
[313152666,1706823044067,-200.0,0.00023934,2]
[313152667,1706823044076,-16624.0,0.00023982,2]
[313152668,1706823044085,-201.73516107,0.00024,2]
[313152669,1706823044096,-815.038764,0.00024,2]
[313152670,1706823044106,-500.0,0.00024001,2]
[313152671,1706823044116,-2916.0,0.00024083,2]
[313152672,1706823044126,-1861.0,0.00024083,2]
[313152673,1706823044137,-224.987,0.00024083,2]
[313152674,1706823044146,-949.0,0.00024083,2]
[313152675,1706823044156,-451.0,0.00024083,2]
[313152676,1706823044165,-839.0,0.00024083,2]
[313152677,1706823044174,-150.0,0.00024083,2]
[313152678,1706823044184,-1033.0,0.00024083,2]
[313152679,1706823044193,-1000.0,0.000241,2]
[313152680,1706823044202,-150.0,0.00024176,2]
[313152681,1706823044212,-150.0,0.00024176,2]
[313152682,1706823044221,-150.554,0.00024176,2]
[313152683,1706823044231,-294.0,0.00024176,2]
[313152684,1706823044241,-236.0,0.00024176,2]
[313152685,1706823044250,-596.0,0.00024176,2]
[313152686,1706823044260,-1000.0,0.00024176,2]
[313152687,1706823044270,-427.0,0.00024176,2]
[313152688,1706823044279,-1941.0,0.00024176,2]
[313152689,1706823044289,-480.612,0.00024176,2]
[313152690,1706823044299,-860.0,0.00024176,2]
[313152691,1706823044308,-150.0,0.00024176,2]
[313152692,1706823044318,-320.0,0.00024176,2]
[313152693,1706823044327,-210.0,0.00024176,2]
[313152694,1706823044337,-8130.0,0.00024176,2]
[313152695,1706823044346,-1363.0,0.00024176,2]
[313152696,1706823044355,-387.0,0.00024176,2]
[313152697,1706823044365,-5602.0,0.00024176,2]
[313152698,1706823044374,-7384.0,0.00024176,2]
[313152699,1706823044384,-4192.0,0.00024176,2]
[313152700,1706823044393,-675.468,0.00024176,2]
[313152701,1706823044402,-2281.0,0.00024176,2]
[313152702,1706823044411,-19773.0,0.00024176,2]
[313152703,1706823044420,-9393.0,0.000242,2]
[313152704,1706823044430,-1487.03,0.00024204,2]
[313152705,1706823044440,-167.01,0.00024297,2]
[313152706,1706823044449,-166.99,0.00024297,2]
[313152707,1706823044458,-167.21,0.00024297,2]
[313152708,1706823044468,-167.0,0.00024297,2]
[313152709,1706823044477,-159.10456797,0.000243,2]
[313152710,1706823044486,-2778.0,0.000243,2]
[313152711,1706823044496,-13606.65,0.00024384,2]
[313152712,1706823044505,-500.0,0.00024396,2]
[313152713,1706823044514,-153.55670088,0.00024587,2]
[313152714,1706823044524,-10000.0,0.00024658,2]
[313152715,1706823044533,-250.0,0.00024658,2]
[313152716,1706823044542,-430.94,0.00024682,2]
[313152717,1706823044551,-420.0,0.00024748,2]
[313152718,1706823044560,-500.0,0.0002476,2]
[313152719,1706823044569,-200.0,0.0002476,2]
[313152720,1706823044579,-500.0,0.00024791,2]
[313152721,1706823044590,-328.0,0.00024812,2]
[313152722,1706823044600,-150.0,0.0002488,2]
[313152723,1706823044609,-164.9,0.0002494,2]
[313152724,1706823044618,-840.0,0.00024943,2]
[313152725,1706823044628,-167.89104996,0.00025,2]
[313152726,1706823044638,-159.19838367,0.00025,2]
[313152727,1706823044648,-935.98268242,0.00025,2]
[313152728,1706823044657,-1905.32780822,0.00025,2]
[313152729,1706823044666,-202.63807571,0.00025,2]
[313152730,1706823044675,-304.42296087,0.00025,2]
[313152731,1706823044684,-208.46122201,0.00025,4]
[313152732,1706823044694,-1588.56278984,0.00025,2]
[313152733,1706823044703,-2320.50679205,0.00025,2]
[313152734,1706823044712,-1253.06290056,0.00025,2]
[313152735,1706823044722,-2813.9378077,0.00025,2]
[313152736,1706823044731,-1250.0,0.00025,3]
[313152737,1706823044740,-1487.03,0.00025061,2]
[313152738,1706823044749,-210.0,0.00025072,2]
[313152739,1706823044759,-1801.88932676,0.000251,2]
[313152740,1706823044769,-500.0,0.00025186,2]
[313152741,1706823044779,-205.0,0.00025218,7]
[313152742,1706823044788,-167.21,0.00025299,2]
[313152743,1706823044798,-1207.25,0.00025343,2]
[313152744,1706823044807,-153.55670088,0.0002543,2]
[313152745,1706823044816,-500.0,0.00025581,2]
[313152746,1706823044826,-167.0,0.00025633,2]
[313152747,1706823044835,-1487.03,0.00025917,2]
[313152748,1706823044844,-500.0,0.00025976,2]
[313152749,1706823044853,-4184.61075109,0.00026,2]
[313152750,1706823044863,-150.0,0.00026079,2]
[313152751,1706823044872,-153.55670088,0.00026274,2]
[313152752,1706823044883,-167.21,0.00026302,2]
[313152753,1706823044892,-500.0,0.00026371,2]
[313152754,1706823044901,-164.9,0.00026407,2]
[313152755,1706823044913,-16369.71,0.00026591,2]
[313152756,1706823044927,-500.0,0.00026766,2]
[313152757,1706823044936,-1487.03,0.00026773,2]
[313152758,1706823044946,-246.0,0.00026871,2]
[313152759,1706823044955,-430.94,0.00026946,2]
[313152760,1706823044965,-167.0,0.0002697,2]
[313152761,1706823044975,-1207.25,0.00026987,2]
[313152762,1706823044984,-417.03654646,0.00027,2]
[313152763,1706823044994,-155.0,0.00027,2]
[313152764,1706823045003,-1300.0,0.00027,3]
[313152765,1706823045014,-2916.0,0.00027083,2]
[313152766,1706823045023,-1861.0,0.00027083,2]
[313152767,1706823045033,-949.0,0.00027083,2]
[313152768,1706823045042,-839.0,0.00027083,2]
[313152769,1706823045052,-1033.0,0.00027083,2]
[313152770,1706823045061,-153.55670088,0.00027117,2]
[313152771,1706823045070,-500.0,0.00027161,2]
[313152772,1706823045080,-150.0,0.00027176,2]
[313152773,1706823045089,-236.0,0.00027176,2]
[313152774,1706823045098,-596.0,0.00027176,2]
[313152775,1706823045107,-1000.0,0.00027176,2]
[313152776,1706823045116,-427.0,0.00027176,2]
[313152777,1706823045125,-1941.0,0.00027176,2]
[313152778,1706823045136,-860.0,0.00027176,2]
[313152779,1706823045145,-150.0,0.00027176,2]
[313152780,1706823045155,-320.0,0.00027176,2]
[313152781,1706823045164,-210.0,0.00027176,2]
[313152782,1706823045173,-8130.0,0.00027176,2]
[313152783,1706823045183,-1363.0,0.00027176,2]
[313152784,1706823045191,-387.0,0.00027176,2]
[313152785,1706823045200,-5602.0,0.00027176,2]
[313152786,1706823045209,-7384.0,0.00027176,2]
[313152787,1706823045218,-3335.261,0.00027176,2]
[313152788,1706823045227,-2281.0,0.00027176,2]
[313152789,1706823045237,-19773.0,0.00027176,2]
[313152790,1706823045246,-167.21,0.00027304,2]
[313152791,1706823045255,-155.0,0.00027397,2]
[313152792,1706823045264,-150.0,0.00027397,2]
[313152793,1706823045273,-3000.0,0.00027397,2]
[313152794,1706823045282,-3000.0,0.00027397,2]
[313152795,1706823045292,-1049.27206858,0.00027397,2]
[313152796,1706823045319,-307.48,0.00023,2]
[313152797,1706823045328,-1950.72793142,0.00027397,2]
[313152798,1706823045337,-3000.0,0.00027397,2]
[313152799,1706823045346,-1157.09746085,0.00027397,2]
[313152923,1706823046892,-1842.90253915,0.00027397,2]
[313152924,1706823046901,-3000.0,0.00027397,2]
[313152925,1706823046910,-3000.0,0.00027397,2]
[313152926,1706823046920,-3000.0,0.00027397,2]
[313152927,1706823046931,-3000.0,0.00027397,2]
[313152928,1706823046941,-3000.0,0.00027397,2]